bitfinex/quotes_BTCUSD_20220307
["timestamp","ask_amount","ask_price","bid_price","bid_amount"]
[1646639551913,0.14815,37844.0,37842.0,0.17363343]
[1646639552161,0.14815,37844.0,37843.0,0.0001742]
[1646639552162,0.19815,37844.0,37843.0,0.0001742]
[1646639553161,0.19815,37844.0,37840.0,0.19256268]
[1646639553362,0.19815,37844.0,37842.0,0.0001742]
[1646639554363,0.19815,37844.0,37840.0,0.19256268]
[1646639554564,0.19815,37844.0,37841.0,0.0001742]
[1646639555166,0.05,37844.0,37841.0,0.17733328]
[1646639555366,0.14815,37843.0,37841.0,0.17733328]
[1646639555565,0.19815,37843.0,37841.0,0.17715908]
[1646639556011,0.14815,37845.0,37841.0,0.17715908]
[1646639556210,0.19815,37845.0,37843.0,0.06951439]
[1646639556606,0.05,37845.0,37843.0,0.06951439]
[1646639556807,0.066074,37848.0,37843.0,0.06951439]
[1646639557008,0.116074,37848.0,37847.0,0.21740761]
[1646639557407,0.116074,37848.0,37842.0,0.0001546]
[1646639558008,0.14815,37846.0,37841.0,0.43715908]
[1646639558211,0.19815,37844.0,37843.0,0.0001546]
[1646639559208,0.19815,37844.0,37841.0,0.26]
[1646639559209,0.05,37842.0,37841.0,0.26]
[1646639560062,0.05,37842.0,37841.0,0.32921446]
[1646639560260,0.066089,37844.0,37841.0,0.32921446]
[1646639560464,0.066089,37844.0,37843.0,0.20518627]
[1646639560661,0.066089,37844.0,37843.0,0.49666416]
[1646639560863,0.066089,37844.0,37843.0,0.29147789]
[1646639561062,0.066089,37844.0,37841.0,0.26]
[1646639561465,0.214239,37844.0,37841.0,0.26]
[1646639561664,0.02310677,37843.0,37841.0,0.26]
[1646639561864,0.02310677,37843.0,37841.0,0.26013937]
[1646639562063,0.07310677,37843.0,37841.0,0.26013937]
[1646639562763,0.07310677,37843.0,37841.0,0.26]
[1646639563812,0.07310677,37843.0,37841.0,1.13123429]
[1646639564018,0.02310677,37843.0,37841.0,1.13123429]
[1646639564214,0.02851928,37842.0,37841.0,0.33093429]
[1646639564414,0.632131,37858.0,37841.0,0.33093429]
[1646639564415,0.132151,37851.0,37841.0,0.33093429]
[1646639564614,0.14815,37850.0,37841.0,0.26]
[1646639564816,0.066076,37847.0,37841.0,0.26]
[1646639565418,0.066076,37847.0,37842.0,0.00014241]
[1646639566417,0.066076,37847.0,37841.0,0.26]
[1646639566621,0.066076,37847.0,37843.0,0.00014241]
[1646639567264,0.066076,37847.0,37845.0,0.20646582]
[1646639568061,0.066076,37847.0,37844.0,0.00014172]
[1646639568261,0.066076,37847.0,37845.0,0.21718587]
[1646639569267,0.066076,37847.0,37846.0,0.21116452]
[1646639569663,0.066076,37847.0,37846.0,0.28434712]
[1646639570911,0.066076,37847.0,37846.0,0.21116452]
[1646639571614,0.066076,37847.0,37845.0,0.21718587]
[1646639572614,0.066076,37847.0,37845.0,0.42917204]
[1646639572814,0.06598432,37847.0,37845.0,0.42917204]
[1646639573213,0.05,37850.0,37847.0,0.18401568]
[1646639573819,0.5,37860.0,37849.0,0.8003]
[1646639573820,0.5132,37860.0,37849.0,0.8003]
[1646639574016,0.5,37860.0,37850.0,0.849]
[1646639574216,0.25021264,37861.0,37855.0,0.27867348]
[1646639574418,0.25021264,37861.0,37855.0,1.07897348]
[1646639574664,0.02051514,37860.0,37858.0,0.21789441]
[1646639574870,0.35693349,37857.0,37855.0,0.27867348]
[1646639575967,0.35693349,37857.0,37856.0,0.9153]
[1646639576570,0.35693349,37857.0,37856.0,1.15429582]
[1646639577370,0.40693349,37857.0,37856.0,1.15429582]
[1646639577768,0.40693349,37857.0,37856.0,1.44049582]
[1646639577967,0.40693349,37857.0,37856.0,1.41429582]
[1646639578417,0.40693349,37857.0,37856.0,0.61399582]
[1646639578614,0.40693349,37857.0,37856.0,1.41429582]
[1646639578830,0.40693349,37857.0,37856.0,1.44049582]
[1646639579519,0.40693349,37857.0,37856.0,1.41429582]
[1646639579923,0.066041,37864.0,37858.0,0.8003]
[1646639580139,0.15584,37871.0,37862.0,0.00185]
[1646639580321,0.15584,37871.0,37865.0,0.8003]
[1646639580528,0.15584,37871.0,37867.0,0.8003]
[1646639580714,0.15584,37871.0,37868.0,0.8532]
[1646639580912,0.15584,37871.0,37869.0,0.2436431]
[1646639581113,0.15584,37871.0,37869.0,0.0529]
[1646639581914,0.20584,37871.0,37869.0,0.0529]
[1646639582564,0.20432923,37871.0,37869.0,0.0529]
[1646639582864,0.20432923,37871.0,37869.0,0.8532]
[1646639583466,0.20432923,37871.0,37870.0,0.30568138]
[1646639583884,0.20432923,37871.0,37869.0,0.8532]
[1646639584867,0.20432923,37871.0,37870.0,0.51835872]
[1646639585066,0.20432923,37871.0,37870.0,0.21267734]
[1646639585466,0.20432923,37871.0,37870.0,1.31865872]
[1646639585667,0.20432923,37871.0,37870.0,1.37155872]
[1646639586939,0.20432923,37871.0,37870.0,1.38829642]
[1646639587345,0.20432923,37871.0,37870.0,1.52819758]
[1646639587828,0.15584,37871.0,37870.0,1.52819758]
[1646639588236,0.15584,37871.0,37870.0,1.77145988]
[1646639589229,0.20584,37871.0,37870.0,1.77145988]
[1646639589431,0.20584,37871.0,37870.0,1.4395785]
[1646639592563,0.20584,37871.0,37870.0,0.42660116]
[1646639592762,0.35399,37871.0,37870.0,0.26]
[1646639593421,0.35399,37871.0,37865.0,0.004]
[1646639593616,0.190625,37870.0,37865.0,0.004]
[1646639594427,0.00021274,37869.0,37865.0,0.004]
[1646639594616,0.00021274,37869.0,37868.0,0.19952791]
[1646639595229,0.20584,37871.0,37868.0,0.19952791]
[1646639595418,0.20584,37871.0,37870.0,0.115]
[1646639595619,0.20584,37871.0,37870.0,0.32395963]
[1646639596319,0.20584,37871.0,37870.0,1.12425963]
[1646639596720,0.20584,37871.0,37870.0,0.32395963]
[1646639597385,0.20584,37871.0,37870.0,0.20895963]
[1646639597585,0.20584,37871.0,37870.0,0.51570993]
[1646639598181,0.20584,37871.0,37870.0,0.53570993]
[1646639598381,0.10584,37871.0,37870.0,0.53570993]
[1646639598583,0.00021274,37872.0,37871.0,0.066009]
[1646639598783,0.72215,37888.0,37871.0,0.4256593]
[1646639598982,0.72215,37888.0,37875.0,0.8003]
[1646639599182,0.0262,37887.0,37876.0,0.0529]
[1646639599384,0.1155,37888.0,37878.0,0.27915928]
[1646639599582,0.14815,37887.0,37878.0,0.27915928]
[1646639599982,0.14815,37887.0,37878.0,0.27908099]
[1646639600185,0.01319,37889.0,37878.0,0.27908099]
[1646639600396,0.42021291,37882.0,37878.0,0.20536456]
[1646639600810,0.47021291,37882.0,37878.0,0.20536456]
[1646639601321,0.47,37882.0,37878.0,0.20536456]
[1646639601515,0.47021291,37882.0,37878.0,0.20536456]
[1646639601811,0.14815,37881.0,37878.0,0.20536456]
[1646639602113,0.47021291,37882.0,37880.0,0.8003]
[1646639602311,0.47021291,37882.0,37878.0,0.25826456]
[1646639602529,0.47,37882.0,37878.0,0.25826456]
[1646639603114,0.47,37882.0,37878.0,0.0529]
[1646639604011,0.47021287,37882.0,37878.0,0.0529]
[1646639604216,0.47021287,37882.0,37878.0,0.24066876]
[1646639604676,0.47021287,37882.0,37878.0,1.04096876]
[1646639604862,0.47,37882.0,37878.0,0.46633612]
[1646639605064,0.14815,37881.0,37875.0,1.04620482]
[1646639605263,0.14815,37881.0,37875.0,1.29942948]
[1646639605469,0.14815,37881.0,37875.0,1.25942948]
[1646639606065,0.14815,37881.0,37878.0,0.18700635]
[1646639606267,0.00020107,37880.0,37878.0,0.18700635]
[1646639606664,0.00020107,37880.0,37875.0,1.00062466]
[1646639606867,0.00020107,37880.0,37872.0,0.8003]
[1646639607067,0.14815,37877.0,37870.0,0.8003]
[1646639607268,0.19815,37877.0,37870.0,0.8003]
[1646639607470,0.14815,37875.0,37870.0,0.8063]
[1646639607680,0.02749459,37874.0,37870.0,0.8063]
[1646639607867,0.19815,37875.0,37870.0,0.8063]
[1646639608068,0.02549471,37874.0,37870.0,0.8063]
[1646639608332,0.02647177,37873.0,37870.0,0.8063]
[1646639608541,0.0205557,37872.0,37870.0,0.006]
[1646639608723,0.19815,37875.0,37869.0,0.17701545]
[1646639608724,0.02985232,37871.0,37869.0,0.17701545]
[1646639608924,0.02985232,37871.0,37866.0,0.8003]
[1646639608925,0.02522906,37870.0,37862.0,0.0660323]
[1646639609122,0.02110907,37869.0,37863.0,0.3835]
[1646639609321,0.02863727,37868.0,37862.0,0.27769251]
[1646639609524,0.02813568,37867.0,37866.0,0.115]
[1646639609721,0.14815,37870.0,37866.0,0.115]
[1646639609922,0.0002003,37867.0,37864.0,0.18962752]
[1646639610120,0.0002003,37867.0,37866.0,0.115]
[1646639610924,0.05,37869.0,37866.0,0.115]
[1646639611123,0.0001575,37868.0,37865.0,0.22046723]
[1646639611425,0.0001575,37868.0,37867.0,0.115]
[1646639612176,0.19815,37870.0,37867.0,0.115]
[1646639612370,0.00015129,37869.0,37864.0,0.39444497]
[1646639612770,0.00015129,37869.0,37864.0,0.29444497]
[1646639612968,0.17435,37865.0,37856.0,0.76536806]
[1646639613164,0.30358017,37869.0,37856.0,0.76536806]
[1646639613165,0.14815,37858.0,37856.0,0.76536806]
[1646639613370,0.25944,37858.0,37856.0,0.76536806]
[1646639613775,0.0262,37855.0,37847.0,0.18401568]
[1646639613969,0.14815,37848.0,37847.0,0.18401568]
[1646639614271,0.19815,37848.0,37847.0,0.18401568]
[1646639614473,0.05,37848.0,37847.0,0.48744456]
[1646639614667,0.05,37849.0,37847.0,0.48744456]
[1646639614867,0.19815,37852.0,37847.0,0.18401568]
[1646639615569,0.19815,37852.0,37848.0,0.28551792]
[1646639615831,0.1999,37849.0,37848.0,0.28551792]
[1646639616233,0.2499,37849.0,37847.0,0.39730877]
[1646639616429,0.2499,37849.0,37847.0,0.18401568]
[1646639616837,0.1998,37848.0,37847.0,0.18401568]
[1646639618233,0.34795,37848.0,37847.0,0.18401568]
[1646639619664,0.1998,37848.0,37847.0,0.18401568]
[1646639620276,0.34795,37848.0,37847.0,0.18401568]
[1646639620470,0.1998,37848.0,37847.0,0.18401568]
[1646639621164,0.34795,37848.0,37847.0,0.18401568]
[1646639621368,0.34795,37848.0,37847.0,0.36099378]
[1646639621973,0.1998,37848.0,37847.0,0.36099378]
[1646639623820,0.1998,37848.0,37847.0,0.18401568]
[1646639629863,0.1998,37848.0,37845.0,0.80044345]
[1646639630076,0.02365211,37847.0,37845.0,0.8003]
[1646639630265,0.02365211,37847.0,37845.0,0.80044225]
[1646639630464,0.22881926,37846.0,37845.0,0.00014225]
[1646639630664,0.1998,37846.0,37845.0,0.00014225]
[1646639630919,0.2498,37846.0,37845.0,0.00014225]
[1646639631321,0.2498,37846.0,37844.0,0.18538676]
[1646639631520,0.2498,37846.0,37844.0,0.18552901]
[1646639631521,0.1998,37845.0,37844.0,0.18552901]
[1646639632433,0.1998,37845.0,37844.0,0.98568676]
[1646639633030,0.1998,37845.0,37844.0,0.18538676]
[1646639633227,0.1998,37845.0,37844.0,0.98568676]
[1646639633427,0.1998,37845.0,37844.0,0.18538676]
[1646639634429,0.1998,37845.0,37844.0,0.98568676]
[1646639634671,0.1998,37845.0,37844.0,1.03858676]
[1646639635071,0.0132,37861.0,37844.0,1.03858676]
[1646639635270,0.354658,37863.0,37854.0,0.21358065]
[1646639635271,0.14815,37857.0,37854.0,0.21358065]
[1646639635475,0.14815,37857.0,37854.0,0.36803029]
[1646639636281,0.19815,37857.0,37854.0,0.36803029]
[1646639637573,0.19807791,37857.0,37854.0,0.36803029]
[1646639637796,0.19363678,37863.0,37856.0,0.86803492]
[1646639637797,0.14815,37862.0,37856.0,0.86803492]
[1646639637986,0.14815,37862.0,37857.0,0.0529]
[1646639638180,0.14815,37862.0,37857.0,0.8532]
[1646639638425,0.14815,37862.0,37857.0,0.0529]
[1646639638626,0.35696205,37862.0,37857.0,0.0529]
[1646639638828,0.14815,37860.0,37857.0,0.0529]
[1646639639730,0.14815,37858.0,37857.0,0.0529]
[1646639640128,0.14815,37858.0,37854.0,0.26648065]
[1646639640129,0.1058,37856.0,37854.0,0.26648065]
[1646639640631,0.14815,37855.0,37854.0,0.0529]
[1646639641031,0.16880213,37855.0,37854.0,0.0529]
[1646639641245,0.14815,37855.0,37854.0,0.0529]
[1646639641729,0.1058,37856.0,37854.0,0.22807949]
[1646639641948,0.31,37855.0,37854.0,1.02837949]
[1646639642192,0.31,37855.0,37854.0,0.24218386]
[1646639643290,0.31,37855.0,37854.0,1.10853186]
[1646639647429,0.31,37855.0,37854.0,1.41261634]
[1646639649779,0.31,37855.0,37854.0,1.54468434]
[1646639650190,0.31,37855.0,37854.0,1.65968434]
[1646639650478,0.1058,37856.0,37855.0,2.0503]
[1646639650685,0.02888637,37862.0,37859.0,0.8003]
[1646639650878,0.1414,37874.0,37861.0,1.33527338]
[1646639650879,0.00019369,37863.0,37861.0,1.33527338]
[1646639651085,0.00019369,37863.0,37862.0,1.27339098]
[1646639651279,0.17673636,37869.0,37862.0,1.43730488]
[1646639651478,0.17673636,37869.0,37866.0,0.25805062]
[1646639651678,0.17673636,37869.0,37867.0,0.35809098]
[1646639651878,0.01319,37876.0,37867.0,0.35809098]
[1646639651879,0.02257899,37868.0,37867.0,0.35809098]
[1646639652079,0.14815,37870.0,37867.0,0.0529]
[1646639652491,0.14815,37869.0,37867.0,0.0529]
[1646639653937,0.14815,37869.0,37867.0,0.31150377]
[1646639654134,0.14815,37869.0,37868.0,0.17969383]
[1646639654334,0.14815,37869.0,37868.0,0.23259383]
[1646639654535,0.14815,37872.0,37868.0,0.23259383]
[1646639654735,0.14815,37872.0,37868.0,0.53778481]
[1646639654935,0.05,37872.0,37868.0,0.53778481]
[1646639655143,0.14815,37870.0,37868.0,0.53778481]
[1646639655338,0.19815,37870.0,37868.0,0.53778481]
[1646639655735,0.05,37870.0,37868.0,0.53778481]
[1646639655935,0.00022241,37872.0,37871.0,0.17783443]
[1646639656539,0.19815,37874.0,37871.0,0.17783443]
[1646639656739,0.00017014,37873.0,37871.0,0.17783443]
[1646639656941,0.00017014,37873.0,37868.0,0.0529]
[1646639657178,0.14815,37870.0,37868.0,0.0529]
[1646639657583,0.19815,37870.0,37868.0,0.0529]
[1646639657983,0.05,37870.0,37868.0,0.25755962]
[1646639658380,0.00017014,37871.0,37868.0,0.25755962]
[1646639658781,0.00017014,37871.0,37868.0,1.05785962]
[1646639658979,0.19815,37873.0,37868.0,1.11566372]
[1646639659180,0.05,37873.0,37869.0,0.30519098]
[1646639659378,0.00017014,37871.0,37869.0,0.30519098]
[1646639659578,0.00017014,37871.0,37868.0,1.07109875]
[1646639659879,0.00017014,37871.0,37868.0,0.27079875]
[1646639660079,0.05,37874.0,37868.0,0.27079875]
[1646639660486,0.00022261,37871.0,37869.0,0.00218127]
[1646639660924,0.00022261,37871.0,37869.0,0.80248127]
[1646639661125,0.00022261,37871.0,37869.0,1.10767225]
[1646639661334,0.05,37875.0,37869.0,0.80248127]
[1646639661526,0.00022261,37872.0,37870.0,0.30519098]
[1646639661727,0.00022261,37872.0,37869.0,0.00218127]
[1646639662126,0.00022261,37872.0,37869.0,0.30737225]
[1646639662328,0.00022261,37872.0,37869.0,0.00218127]
[1646639662627,0.19815,37874.0,37869.0,0.00218127]
[1646639662825,0.00022261,37872.0,37869.0,1.10767225]
[1646639663829,0.02390722,37873.0,37872.0,1.00876126]
[1646639664129,0.02390722,37873.0,37872.0,1.21802536]
[1646639664340,0.02390722,37873.0,37872.0,1.52321634]
[1646639664591,0.02250635,37874.0,37872.0,1.52321634]
[1646639664775,0.02250635,37874.0,37873.0,1.180349]
[1646639665581,0.00019665,37875.0,37873.0,0.87515802]
[1646639665780,0.00019665,37875.0,37874.0,1.02681696]
[1646639666175,0.21862992,37879.0,37874.0,1.33200794]
[1646639666379,0.00019665,37876.0,37874.0,1.33200794]
[1646639666583,0.00019665,37876.0,37875.0,1.10549098]
[1646639666776,0.00019665,37876.0,37875.0,1.15839098]
[1646639667376,0.16862992,37879.0,37875.0,1.25609425]
[1646639667579,0.00019665,37877.0,37875.0,1.15839098]
[1646639667783,0.00019665,37877.0,37876.0,0.40289425]
[1646639667977,0.00019665,37877.0,37876.0,0.45579425]
[1646639668429,0.00019665,37877.0,37876.0,1.25609425]
[1646639668628,0.02575708,37883.0,37877.0,0.01236275]
[1646639668839,0.02088738,37882.0,37879.0,0.8003]
[1646639669023,0.02088738,37882.0,37880.0,1.15839098]
[1646639669236,0.02088738,37882.0,37881.0,0.30519098]
[1646639669425,0.02088738,37882.0,37880.0,1.34577817]
[1646639669627,0.02088738,37882.0,37881.0,0.18010827]
[1646639670025,0.02088738,37882.0,37880.0,1.02607378]
[1646639670235,0.02088738,37882.0,37880.0,0.95141185]
[1646639670429,0.02088738,37882.0,37880.0,0.75029597]
[1646639671437,0.0244161,37881.0,37880.0,0.34436229]
[1646639671634,0.0244161,37881.0,37880.0,0.0529]
[1646639672278,0.02062079,37880.0,37875.0,0.004]
[1646639672484,0.14815,37876.0,37875.0,0.004]
[1646639672876,0.14815,37876.0,37871.0,0.03917054]
[1646639673076,0.02445357,37879.0,37871.0,0.03917054]
[1646639673484,0.02445357,37879.0,37872.0,0.8003]
[1646639673679,0.00019472,37877.0,37872.0,0.8003]
[1646639673878,0.02532916,37877.0,37873.0,0.16995483]
[1646639674080,0.02104211,37876.0,37873.0,0.16995483]
[1646639674277,0.02504709,37876.0,37873.0,0.16995483]
[1646639674489,0.02699415,37875.0,37873.0,0.97025483]
[1646639674681,0.02488093,37874.0,37870.0,0.30285137]
[1646639674880,0.05,37877.0,37876.0,0.6638759]
[1646639677330,0.1785175,37881.0,37876.0,0.93692727]
[1646639677536,0.1785175,37881.0,37876.0,0.6638759]
[1646639677741,0.14815,37880.0,37876.0,0.6638759]
[1646639678630,0.14815,37882.0,37876.0,1.77073568]
[1646639679028,0.19357361,37885.0,37879.0,0.22109867]
[1646639679243,0.34466373,37888.0,37880.0,0.30655978]
[1646639679453,0.14815,37890.0,37880.0,0.30655978]
[1646639679454,0.14815,37890.0,37887.0,0.26940365]
[1646639680189,0.17435,37890.0,37887.0,0.26940365]
[1646639680389,0.17435,37890.0,37884.0,0.30655978]
[1646639680591,0.14815,37890.0,37883.0,1.3203105]
[1646639680789,0.14815,37890.0,37885.0,0.0529]
[1646639680989,0.14837258,37890.0,37885.0,0.0529]
[1646639681207,0.05,37889.0,37885.0,0.0529]
[1646639681393,0.05,37889.0,37886.0,0.28465128]
[1646639681590,0.05,37889.0,37886.0,0.4139904]
[1646639681991,0.05022258,37889.0,37886.0,0.4139904]
[1646639682215,0.00022258,37889.0,37886.0,0.4139904]
[1646639682406,0.00022258,37889.0,37886.0,0.35064228]
[1646639682594,0.00022258,37889.0,37885.0,0.22311324]
[1646639682797,0.00022258,37889.0,37886.0,0.30655978]
[1646639682998,0.14815,37889.0,37885.0,0.22311324]
[1646639683345,0.19837258,37889.0,37886.0,0.30655978]
[1646639683540,0.19837258,37889.0,37885.0,0.22311324]
[1646639684229,0.19815,37889.0,37886.0,0.30655978]
[1646639684428,0.19836678,37889.0,37885.0,0.0529]
[1646639684829,0.19836678,37889.0,37887.0,0.00129135]
[1646639685330,0.19815,37889.0,37885.0,0.05042189]
[1646639685729,0.14815,37888.0,37885.0,0.05042189]
[1646639686545,0.14815,37886.0,37882.0,0.003]
[1646639686739,0.19815,37883.0,37882.0,0.003]
[1646639686932,0.19815,37883.0,37875.0,0.81349]
[1646639687186,0.19815,37883.0,37875.0,0.8003]
[1646639687595,0.25644496,37883.0,37875.0,0.8003]
[1646639687785,0.14815,37879.0,37874.0,0.40385396]
[1646639687986,0.14815,37879.0,37874.0,0.21519307]
[1646639688184,0.19815,37879.0,37874.0,0.52175285]
[1646639688493,0.05,37879.0,37874.0,0.52175285]
[1646639688683,0.0292504,37880.0,37874.0,0.52175285]
[1646639688886,0.22171423,37879.0,37874.0,0.52175285]
[1646639689185,0.07356423,37879.0,37877.0,0.30655978]
[1646639689383,0.07356423,37879.0,37878.0,0.06931896]
[1646639689594,0.02356423,37879.0,37878.0,0.37587874]
[1646639689793,0.05,37879.0,37878.0,0.37587874]
[1646639690184,0.14815,37882.0,37878.0,0.58250205]
[1646639690185,0.19815,37882.0,37878.0,0.58250205]
[1646639690385,0.19815,37882.0,37880.0,0.26236858]
[1646639690586,0.19815,37882.0,37880.0,0.30655978]
[1646639691032,0.05,37882.0,37880.0,0.30655978]
[1646639691241,0.05,37884.0,37880.0,0.30655978]
[1646639691437,0.14815,37881.0,37880.0,0.30655978]
[1646639691635,0.19815,37881.0,37880.0,0.30655978]
[1646639691839,0.19815,37881.0,37878.0,0.50441798]
[1646639692034,0.19815,37881.0,37878.0,0.20662331]
[1646639692436,0.19815,37881.0,37879.0,0.26526776]
[1646639692834,0.19836307,37881.0,37879.0,0.26526776]
[1646639693835,0.19815,37881.0,37879.0,0.26526776]
[1646639694438,0.19815,37881.0,37877.0,0.17043525]
[1646639694716,0.19815,37881.0,37877.0,0.97073525]
[1646639694898,0.05,37881.0,37877.0,0.17043525]
[1646639695298,0.05,37881.0,37878.0,0.2190675]
[1646639695299,0.00021292,37881.0,37878.0,0.2190675]
[1646639695499,0.00021292,37881.0,37878.0,0.2327964]
[1646639696299,0.14815,37881.0,37877.0,0.17043525]
[1646639696500,0.14836292,37881.0,37877.0,0.17043525]
[1646639696703,0.19836292,37881.0,37877.0,0.17043525]
[1646639697303,0.14836292,37881.0,37878.0,0.24372835]
[1646639697502,0.14815,37881.0,37878.0,0.24372835]
[1646639698001,0.00021292,37881.0,37878.0,0.24372835]
[1646639698425,0.14836292,37881.0,37878.0,0.24372835]
[1646639698627,0.14815,37881.0,37878.0,0.24372835]
[1646639698826,0.14836638,37881.0,37878.0,0.24372835]
[1646639699429,0.14836638,37881.0,37880.0,0.0999]
[1646639699638,0.00021638,37881.0,37880.0,0.2997]
[1646639699826,0.00021638,37881.0,37880.0,0.0999]
[1646639699827,0.14815,37881.0,37880.0,0.0999]
[1646639700028,0.19815,37881.0,37876.0,0.77770938]
[1646639700638,0.19815,37881.0,37876.0,0.84508589]
[1646639701230,0.00021639,37880.0,37876.0,0.84508589]
[1646639701436,0.00021639,37880.0,37876.0,1.64538589]
[1646639701732,0.00021639,37880.0,37877.0,0.29610685]
[1646639701929,0.00021639,37880.0,37877.0,1.09640685]
[1646639702188,0.00187946,37882.0,37877.0,0.8003]
[1646639702376,0.00187946,37882.0,37880.0,0.27392479]
[1646639702778,0.00187946,37882.0,37880.0,0.46811433]
[1646639703785,0.00187946,37882.0,37880.0,0.27392479]
[1646639704384,0.00187946,37882.0,37880.0,1.07422479]
[1646639704587,0.04781695,37891.0,37883.0,0.065988]
[1646639704588,0.02840828,37891.0,37883.0,0.065988]
[1646639704781,0.02670438,37889.0,37884.0,0.8532]
[1646639704993,0.23779441,37893.0,37884.0,0.8532]
[1646639705183,0.02482108,37892.0,37884.0,0.8532]
[1646639705387,0.02065299,37891.0,37890.0,0.26594022]
[1646639705584,0.17435,37895.0,37890.0,0.31884022]
[1646639705825,0.14815,37898.0,37890.0,0.31207658]
[1646639706426,0.14815,37898.0,37890.0,1.11237658]
[1646639706626,0.14815,37898.0,37893.0,0.42183163]
[1646639707224,0.00015173,37897.0,37893.0,0.42183163]
[1646639707428,0.00015173,37897.0,37893.0,1.22213163]
[1646639707831,0.00015173,37897.0,37894.0,0.8532]
[1646639708224,0.01,37899.0,37894.0,0.8532]
[1646639708430,0.01,37899.0,37898.0,0.8003]
[1646639708630,0.01,37899.0,37898.0,0.9682]
[1646639709427,0.01,37899.0,37898.0,1.28668446]
[1646639709695,0.01,37899.0,37898.0,1.25553217]
[1646639710079,0.00081875,37906.0,37899.0,1.25]
[1646639710284,0.00081875,37906.0,37900.0,1.17477713]
[1646639710487,0.00081875,37906.0,37904.0,0.8003]
[1646639710693,0.14815,37917.0,37905.0,1.27232556]
[1646639710881,0.14815,37917.0,37905.0,1.17232556]
[1646639711080,0.14815,37917.0,37910.0,0.16560374]
[1646639711283,0.14815,37917.0,37911.0,0.0529]
[1646639711490,0.0262,37916.0,37911.0,0.0529]
[1646639711696,0.13315,37913.0,37911.0,0.0529]
[1646639711881,0.13315,37912.0,37911.0,0.0529]
[1646639712286,0.13315,37916.0,37911.0,0.0529]
[1646639712484,0.13315,37916.0,37912.0,0.30334122]
[1646639712685,0.18315,37916.0,37912.0,0.35624122]
[1646639712890,0.18315,37916.0,37913.0,0.30334122]
[1646639713083,0.18315,37916.0,37912.0,0.0529]
[1646639714528,0.13337276,37916.0,37912.0,0.0529]
[1646639714734,0.13337276,37916.0,37913.0,0.30334122]
[1646639714735,0.00022276,37916.0,37913.0,0.30334122]
[1646639714933,0.00022276,37916.0,37914.0,0.21249633]
[1646639715328,0.13315,37917.0,37914.0,0.21249633]
[1646639715532,0.18315,37917.0,37914.0,0.21249633]
[1646639715730,0.05022276,37917.0,37914.0,0.21249633]
[1646639715930,0.05022276,37917.0,37914.0,0.0529]
[1646639716233,0.13315,37915.0,37914.0,0.0529]
[1646639717890,0.02796301,37912.0,37911.0,0.0529]
[1646639718101,0.16111301,37912.0,37911.0,0.0529]
[1646639718290,0.37753111,37912.0,37911.0,0.0529]
[1646639718705,0.21111301,37912.0,37911.0,0.0529]
[1646639719290,0.13315,37912.0,37911.0,0.0529]
[1646639719690,0.15602277,37913.0,37911.0,0.0529]
[1646639720093,0.28917277,37913.0,37911.0,0.0529]
[1646639720288,0.28895,37913.0,37911.0,0.0529]
[1646639720948,0.1558,37913.0,37911.0,0.0529]
[1646639721333,0.1058,37913.0,37911.0,0.06490295]
[1646639721727,0.1058,37913.0,37911.0,0.0529]
[1646639721927,0.1058,37913.0,37911.0,0.06729044]
[1646639722141,0.1058,37913.0,37912.0,0.01322579]
[1646639722328,0.1058,37913.0,37911.0,0.06416238]
[1646639722528,0.1058,37913.0,37912.0,0.01477447]
[1646639723630,0.1058,37913.0,37908.0,0.01318]
[1646639723832,0.13315,37910.0,37908.0,0.01318]
[1646639724038,0.13315,37910.0,37903.0,0.03918995]
[1646639724249,0.18365977,37913.0,37903.0,0.03918995]
[1646639724685,0.13315,37907.0,37903.0,0.03918995]
[1646639724883,0.13315,37907.0,37904.0,0.16771025]
[1646639725082,0.13315,37910.0,37904.0,0.16771025]
[1646639725298,0.00021225,37907.0,37904.0,0.16771025]
[1646639725493,0.00021225,37907.0,37904.0,0.96801025]
[1646639725683,0.00021225,37907.0,37904.0,0.18273155]
[1646639726081,0.13236225,37907.0,37904.0,0.18273155]
[1646639726280,0.13215,37909.0,37904.0,0.0150213]
[1646639726480,0.00021225,37907.0,37904.0,0.0150213]
[1646639727080,0.00021225,37907.0,37905.0,0.16475238]
[1646639727286,0.00021225,37907.0,37906.0,0.8003]
[1646639727488,0.13215,37912.0,37908.0,0.8003]
[1646639727682,0.1058,37913.0,37912.0,0.07129877]
[1646639728628,0.1058,37913.0,37910.0,0.30235598]
[1646639729025,0.1058,37913.0,37909.0,0.01230628]
[1646639729427,0.1058,37913.0,37909.0,0.81260628]
[1646639729626,0.1058,37913.0,37910.0,1.10265598]
[1646639729829,0.1058,37913.0,37912.0,0.2521793]
[1646639730027,0.1058,37913.0,37912.0,0.21290401]
[1646639730028,0.10600574,37913.0,37912.0,0.21290401]
[1646639730251,0.10600574,37913.0,37908.0,0.04793494]
[1646639730443,0.10600574,37913.0,37909.0,0.01066494]
[1646639731032,0.1058,37913.0,37909.0,0.01066494]
[1646639731234,0.10600574,37913.0,37910.0,0.24845132]
[1646639732191,0.1058,37913.0,37911.0,0.30342936]
[1646639732396,0.1058,37913.0,37912.0,0.8003]
[1646639732592,0.10600554,37913.0,37911.0,1.10372936]
[1646639732804,0.10600554,37913.0,37912.0,0.37322534]
[1646639733191,0.10600554,37913.0,37912.0,1.17352534]
[1646639733396,0.1058,37913.0,37912.0,1.17352534]
[1646639734191,0.1058,37913.0,37912.0,0.30342936]
[1646639735306,0.1058,37913.0,37910.0,0.55188068]
[1646639735613,0.1058,37913.0,37910.0,0.30342936]
[1646639735829,0.1058,37913.0,37909.0,0.05921588]
[1646639736129,0.10601222,37913.0,37910.0,0.30342936]
[1646639736431,0.10601222,37913.0,37910.0,1.10372936]
[1646639737027,0.1058,37913.0,37910.0,1.10372936]
[1646639737431,0.10601299,37913.0,37911.0,0.20704614]
[1646639737632,0.10601299,37913.0,37912.0,0.30342936]
[1646639738231,0.1058,37913.0,37912.0,0.30342936]
[1646639738630,0.1058,37913.0,37911.0,0.20704614]
[1646639741081,0.1058,37913.0,37912.0,0.30342936]
[1646639741692,0.1058,37913.0,37911.0,0.20704614]
[1646639741891,0.1058,37913.0,37912.0,0.30342936]
[1646639742684,0.1058,37913.0,37912.0,0.31934029]
[1646639742885,0.1058,37913.0,37912.0,0.01591093]
[1646639743089,0.1058,37913.0,37912.0,0.31934029]